bitfinex-derivatives/quotes_SOLF0:USTF0_20250207
["timestamp","ask_amount","ask_price","bid_price","bid_amount"]
[1738944277194,0.0347501,196.56,196.55,5.0859]
[1738944277394,0.0347501,196.56,196.52,0.03431068]
[1738944277792,36.27891604,196.56,196.52,0.03431068]
[1738944277993,36.27891604,196.56,196.39,3.1322]
[1738944278194,36.27891604,196.56,196.47,5.088]
[1738944278497,36.27891604,196.56,196.39,3.1322]
[1738944278498,36.24416594,196.56,196.39,3.1322]
[1738944278898,5.0864,196.54,196.39,3.1322]
[1738944279099,36.24416594,196.56,196.39,3.1322]
[1738944279397,0.03220945,196.49,196.46,0.03780958]
[1738944279796,5.38,196.58,196.49,5.0873]
[1738944279998,5.38,196.58,196.42,36.24416594]
[1738944280198,2.497e-05,196.49,196.46,36.28291223]
[1738944280494,2.497e-05,196.49,196.48,5.0877]
[1738944280702,3.4786,196.63,196.46,36.24416594]
[1738944280892,36.24416594,196.56,196.4,36.24416594]
[1738944281090,36.24416594,196.56,196.39,3.1322]
[1738944281494,36.24416594,196.56,196.45,5.0883]
[1738944281691,0.03737001,196.49,196.46,0.03272171]
[1738944282194,5.0868,196.52,196.46,0.03272171]
[1738944282598,0.0327614,196.49,196.46,0.03272171]
[1738944282797,0.0327614,196.49,196.48,5.0877]
[1738944282995,36.24416594,196.56,196.46,0.03272171]
[1738944283198,36.24416594,196.51,196.46,0.03272171]
[1738944283396,2.03929346,196.5,196.46,0.03272171]
[1738944283601,3.5688,196.5,196.32,36.24416594]
[1738944283797,5.0875,196.49,196.46,0.03584172]
[1738944284104,5.0875,196.49,196.32,36.24416594]
[1738944284105,3.5688,196.5,196.32,36.24416594]
[1738944284397,5.0878,196.48,196.46,0.03653619]
[1738944284597,36.24416594,196.47,196.32,36.24416594]
[1738944284796,36.24416594,196.47,196.29,1.5963]
[1738944284992,36.24416594,196.47,196.3,1.5664]
[1738944285189,3.5688,196.5,196.32,36.24416594]
[1738944285397,3.5688,196.5,196.4,36.24416594]
[1738944285598,1.5561,196.55,196.4,36.24416594]
[1738944285797,3.22e-06,196.47,196.43,0.03341542]
[1738944285998,3.22e-06,196.47,196.46,5.0883]
[1738944286194,1.5827,196.59,196.44,36.24416594]
[1738944287008,0.03604516,196.53,196.5,0.03339511]
[1738944288197,0.03604516,196.53,196.5,5.12039511]
[1738944288396,0.03604516,196.53,196.5,0.03339511]
[1738944288797,4.516e-05,196.53,196.52,5.0867]
[1738944289095,4.516e-05,196.53,196.5,0.03339511]
[1738944291896,4.516e-05,196.53,196.52,5.0867]
[1738944293903,4.516e-05,196.53,196.52,41.33086594]
[1738944294202,1.9025,196.7,196.52,36.24416594]
[1738944294403,1.9025,196.7,196.57,36.24416594]
[1738944295301,0.03283478,196.65,196.62,0.03612491]
[1738944296302,5.0836,196.64,196.62,0.03612491]
[1738944296502,0.03283478,196.65,196.62,0.03612491]
[1738944297507,36.24416594,196.8,196.62,0.03612491]
[1738944297707,3.4106,196.79,196.65,36.24416594]
[1738944298003,36.24416594,196.72,196.54,36.24416594]
[1738944298204,36.24416594,196.68,196.52,1.6382]
[1738944298709,0.03529923,196.62,196.58,0.03465714]
[1738944299705,36.24416594,196.6,196.58,0.03465714]
[1738944299900,36.24416594,196.6,196.43,1.6382]
[1738944300104,36.24416594,196.56,196.47,5.088]
[1738944300302,1.5704,196.55,196.42,6.96380627]
[1738944301007,0.03498147,196.5,196.47,0.03547041]
[1738944301311,1.6224,196.61,196.48,36.24416594]
[1738944301803,1.6224,196.61,196.37,299.96380627]
[1738944301804,36.24416594,196.6,196.44,36.24416594]
[1738944302008,36.24416594,196.6,196.4,36.24416594]
[1738944302308,1.6224,196.61,196.4,36.24416594]
[1738944302309,1.6224,196.61,196.51,5.0867]
[1738944302608,4.798e-05,196.52,196.48,36.28191028]
[1738944302810,1.6224,196.61,196.48,36.24416594]
[1738944303009,1.6351,196.69,196.52,36.24416594]
[1738944303209,1.6351,196.69,196.56,36.24416594]
[1738944303607,1.6351,196.69,196.5,36.36406594]
[1738944303803,0.03297654,196.64,196.61,0.03742655]
[1738944304514,1.581,196.73,196.61,0.03742655]
[1738944304812,1.581,196.73,196.59,36.24416594]
[1738944305814,0.03542706,196.68,196.64,0.0369338]
[1738944307822,0.03542706,196.68,196.67,5.0828]
[1738944308223,0.03542706,196.68,196.64,0.0369338]
[1738944309416,0.03542706,196.68,196.64,5.1203338]
[1738944309620,0.03542706,196.68,196.64,0.0369338]
[1738944310322,36.279593,196.68,196.51,1.5677]
[1738944310516,5.0846,196.61,196.49,1.5561]
[1738944310726,36.24416594,196.64,196.45,6.96380627]
[1738944310927,37.76456594,196.6,196.45,6.96380627]
[1738944311120,37.76456594,196.6,196.51,5.0869]
[1738944311322,37.76456594,196.6,196.45,6.96380627]
[1738944311524,0.03362273,196.54,196.51,0.03518279]
[1738944311726,5.0865,196.53,196.51,0.03518279]
[1738944312024,0.03362273,196.54,196.45,6.96380627]
[1738944312224,5.0869,196.52,196.45,6.96380627]
[1738944312427,0.03362273,196.54,196.45,6.96380627]
[1738944312820,36.24416594,196.49,196.44,17.85761882]
[1738944313021,36.24416594,196.49,196.44,6.99891882]
[1738944313223,36.24416594,196.45,196.32,18.25231863]
[1738944313531,36.24416594,196.41,196.32,16.66701863]
[1738944314228,36.24416594,196.45,196.32,16.66701863]
[1738944314530,0.03884795,196.38,196.35,0.03578784]
[1738944314923,5.26,196.46,196.35,0.03578784]
[1738944315228,0.03219708,196.38,196.35,0.03578784]
[1738944315624,5.0886,196.45,196.35,0.03578784]
[1738944315822,36.24416594,196.49,196.35,0.03578784]
[1738944315823,0.03445781,196.38,196.35,0.03578784]
[1738944316131,81.78546357,196.57,196.36,36.24416594]
[1738944316132,118.02962951,196.57,196.36,36.24416594]
[1738944316427,1.95272252,196.56,196.4,36.24416594]
[1738944316619,118.02962951,196.57,196.4,36.24416594]
[1738944316620,1.01755278,196.55,196.4,36.24416594]
[1738944317026,36.24416594,196.49,196.37,1.6459]
[1738944317228,5.0878,196.48,196.3,37.74646594]
[1738944317425,0.03563704,196.49,196.38,36.24416594]
[1738944317626,1.01755278,196.55,196.38,36.24416594]
[1738944318330,5.0865,196.53,196.44,5.0887]
[1738944318623,5.0865,196.53,196.38,36.24416594]
[1738944318624,0.03460834,196.48,196.45,0.03658146]
[1738944319028,5.0869,196.52,196.45,0.03658146]
[1738944319328,0.03595029,196.48,196.45,0.03658146]
[1738944320122,5.0882,196.47,196.45,0.03658146]
[1738944320322,0.03595029,196.48,196.45,0.03658146]
[1738944320725,36.24416594,196.46,196.31,1.6459]
[1738944321024,0.93566313,196.45,196.31,1.6459]
[1738944321225,41.50416594,196.46,196.3,1.5023]
[1738944321425,36.24416594,196.38,196.22,36.24416594]
[1738944321631,5.0917,196.33,196.25,5.0937]
[1738944322031,36.24416594,196.38,196.28,0.03781153]
[1738944322032,0.03540243,196.32,196.28,0.03781153]
[1738944322234,5.12740243,196.32,196.28,0.03781153]
[1738944322829,0.03540243,196.32,196.28,0.03781153]
[1738944323930,0.03540243,196.32,196.31,5.0922]
[1738944324131,36.24416594,196.44,196.28,0.03781153]
[1738944324523,5.0896,196.41,196.33,5.0916]
[1738944324929,36.24416594,196.44,196.26,36.24416594]
[1738944325232,0.03307471,196.37,196.33,0.03571336]
[1738944325731,36.24416594,196.44,196.31,1.6187]
[1738944325932,0.03432919,196.37,196.33,0.03264269]
[1738944327530,5.0914,196.34,196.33,4.269e-05]
[1738944328332,0.03432919,196.37,196.33,4.269e-05]
[1738944328836,5.0914,196.34,196.33,4.269e-05]
[1738944329227,41.46416594,196.34,196.21,3.4281]
[1738944329428,0.93615958,196.33,196.21,3.4281]
[1738944329632,41.46416594,196.34,196.21,3.4281]
[1738944329937,5.0935,196.26,196.21,3.4281]
[1738944330128,36.24416594,196.3,196.21,3.4281]
[1738944330327,5.0936,196.26,196.16,5.096]
[1738944330527,0.03554868,196.25,196.22,0.03773543]
[1738944330929,5.12934868,196.25,196.22,0.03773543]
[1738944331132,0.03554868,196.25,196.22,0.03773543]
[1738944331926,5.0942,196.23,196.22,0.03773543]
[1738944332128,0.03554868,196.25,196.22,0.03773543]
[1738944333838,5.0941,196.24,196.22,0.03773543]
[1738944334038,0.03554868,196.25,196.22,0.03773543]
[1738944334941,5.0942,196.23,196.22,0.03773543]
[1738944335330,0.03554868,196.25,196.22,0.03773543]
[1738944336041,0.03554868,196.25,196.12,1.5979]
[1738944336237,36.24416594,196.22,196.12,1.5979]
[1738944336438,5.0953,196.19,196.12,1.5979]
[1738944336843,36.24416594,196.22,196.12,1.5979]
[1738944337239,36.24416594,196.3,196.12,1.5979]
[1738944337444,0.03511597,196.19,196.15,0.03222371]
[1738944337744,37.26301464,196.3,196.12,1.5979]
[1738944337943,5.0935,196.26,196.19,5.095]
[1738944338239,37.26301464,196.3,196.12,1.5979]
[1738944338433,0.03832418,196.23,196.12,1.5979]
[1738944338634,0.03832418,196.23,196.21,0.03491123]
[1738944338843,0.03832418,196.23,196.18,5.0955]
[1738944339040,0.03832418,196.23,196.12,1.5979]
[1738944339041,0.03832418,196.23,196.14,36.24416594]
[1738944339342,0.03832418,196.23,196.2,0.03376602]
[1738944340139,0.03832418,196.23,196.2,5.12876602]
[1738944341039,0.03832418,196.23,196.2,0.03376602]
[1738944341245,0.03832418,196.23,196.21,5.0945]
[1738944341844,0.03832418,196.23,196.2,0.03376602]
[1738944343437,0.03832418,196.23,196.22,5.0945]
[1738944344040,0.03832418,196.23,196.21,5.0947]
[1738944344438,0.03832418,196.23,196.2,0.03376602]
[1738944344637,0.03832418,196.23,196.2,5.12856602]
[1738944344838,0.03832418,196.23,196.2,0.03376602]
[1738944345038,137.06416594,196.4,196.2,0.03376602]
[1738944345039,5.2,196.35,196.2,0.03376602]
[1738944345247,36.24416594,196.36,196.21,36.24416594]
[1738944345445,36.24416594,196.39,196.24,36.24416594]
[1738944345746,100.82,196.4,196.25,5.0935]
[1738944345747,36.24416594,196.38,196.25,5.0935]
[1738944345942,36.24416594,196.38,196.22,1.5693]
[1738944346247,0.03863419,196.33,196.3,0.03446558]
[1738944346448,36.24416594,196.32,196.3,6.558e-05]
[1738944346644,36.24416594,196.32,196.15,2.0208]
[1738944346840,36.24416594,196.28,196.19,5.0951]
[1738944347048,5.0939,196.25,196.15,2.0208]
[1738944347250,36.24416594,196.28,196.15,2.0208]
[1738944347441,36.24416594,196.21,196.04,36.24416594]
[1738944347646,36.24416594,196.21,196.05,1.544]
[1738944347847,0.03648632,196.14,196.11,0.0369154]
[1738944348350,0.03658588,196.14,196.11,0.0369154]
[1738944348743,5.18,196.23,196.11,0.0369154]
[1738944348949,5.0947,196.22,196.14,5.0965]
[1738944349150,5.18,196.23,196.05,1.544]
[1738944349650,36.24416594,196.18,196.05,1.544]
[1738944349953,0.03617245,196.16,196.12,0.03499381]
[1738944350152,5.13247245,196.16,196.12,0.03499381]
[1738944350347,0.03617245,196.16,196.12,0.03499381]
[1738944350746,5.13227245,196.16,196.12,0.03499381]
[1738944350943,0.03617245,196.16,196.12,0.03499381]
[1738944354156,0.03617245,196.16,196.13,5.0968]
[1738944354350,0.03617245,196.16,196.12,0.03499381]
[1738944356248,0.03617245,196.16,196.14,5.0965]
[1738944356450,0.03617245,196.16,196.12,0.03499381]
[1738944356451,0.03617245,196.16,196.13,3.5856]
[1738944358154,0.03617245,196.16,196.12,0.03499381]
[1738944359152,5.13217245,196.16,196.12,0.03499381]
[1738944359459,0.03617245,196.16,196.12,0.03499381]
[1738944362552,0.03617245,196.16,196.12,5.13179381]
[1738944362855,0.03617245,196.16,196.12,0.03499381]
[1738944363256,5.0942,196.24,196.12,0.03499381]
[1738944363455,81.78546357,196.3,196.22,36.24416594]
[1738944363663,81.78546357,196.3,196.24,5.0937]
[1738944363858,81.78546357,196.3,196.23,3.5094]
[1738944364552,81.78546357,196.3,196.25,0.03663451]
[1738944364553,0.03211043,196.28,196.25,0.03663451]
[1738944364760,5.22,196.41,196.28,5.0928]
[1738944364761,81.78546357,196.34,196.28,5.0928]
[1738944365263,81.78546357,196.34,196.3,5.0924]
[1738944365459,81.78546357,196.34,196.23,3.5094]
[1738944365659,81.78546357,196.34,196.24,36.24416594]
[1738944365859,81.78546357,196.34,196.28,5.0929]
[1738944366061,0.03391989,196.3,196.27,0.03892758]
[1738944367664,5.0929,196.28,196.27,0.03892758]
[1738944368057,5.0929,196.28,196.27,2.758e-05]
[1738944368256,5.0942,196.24,196.14,1.8583]
[1738944368461,36.24416594,196.28,196.14,1.8583]
[1738944368653,0.93650708,196.27,196.14,1.8583]
[1738944369359,0.03224256,196.22,196.19,0.0326846]
[1738944370762,5.2,196.29,196.19,0.0326846]
[1738944370763,5.2,196.29,196.24,5.094]
[1738944371060,36.24416594,196.36,196.15,36.24416594]
[1738944371266,86.98546357,196.38,196.14,1.8583]
[1738944371267,5.0935,196.26,196.16,5.0959]
[1738944371463,5.0935,196.26,196.14,1.8583]
[1738944371464,36.24416594,196.32,196.14,1.8583]
[1738944372162,0.03649373,196.25,196.21,0.03459793]
[1738944372369,36.24416594,196.28,196.14,1.8583]
[1738944372665,0.03251519,196.25,196.21,0.03632312]
[1738944373967,1.01858925,196.35,196.22,36.24416594]
[1738944374170,0.93617143,196.34,196.23,1.64]
[1738944374371,1.01858925,196.35,196.23,1.64]
[1738944374666,1.01858925,196.35,196.26,36.24416594]
[1738944374865,1.01858925,196.35,196.3,36.24416594]
[1738944375168,50.00851129,196.37,196.34,36.24416594]
[1738944375464,122.03414668,196.38,196.36,5.0909]
[1738944375668,171.51505835,196.4,196.39,36.24416594]
[1738944375865,143.95007526,196.4,196.39,41.33426594]
[1738944376162,50.34996079,196.4,196.39,77.57843188]
[1738944376361,30.57646079,196.4,196.39,77.57843188]
[1738944376559,1.01832993,196.4,196.39,41.33426594]
[1738944376963,1.01832993,196.4,196.38,0.03774814]
[1738944378067,1.01832993,196.4,196.39,13.00392085]
[1738944379064,0.03511567,196.41,196.39,49.24808679]
[1738944379266,1.6399,196.59,196.39,49.24808679]
[1738944379468,6.9753,196.55,196.44,41.33276594]
[1738944379669,1.8892,196.55,196.44,36.24416594]
[1738944380163,1.6399,196.59,196.44,36.24416594]
[1738944380466,5.0857,196.56,196.44,41.33286594]
[1738944380773,0.03493277,196.51,196.48,36.27636873]
[1738944381168,5.085,196.59,196.49,5.0874]
[1738944381368,36.24416594,196.62,196.48,36.24416594]
[1738944381570,0.03457519,196.51,196.48,36.27771449]
[1738944381866,1.9952,196.63,196.48,36.24416594]
[1738944382268,0.03413295,196.51,196.48,36.27656335]
[1738944382469,1.6311,196.65,196.5,29.72141595]
[1738944382774,1.6311,196.65,196.53,36.24416594]
[1738944382974,5.0847,196.6,196.53,41.33046594]
[1738944383274,36.24416594,196.74,196.57,36.24416594]
[1738944383464,1.5176,196.74,196.61,36.24416594]
[1738944383873,0.03387536,196.67,196.65,36.24416594]
[1738944384076,0.03387536,196.67,196.65,41.32746594]
[1738944384273,7.536e-05,196.67,196.65,41.32746594]
[1738944384474,1.6132,196.83,196.65,36.24416594]
[1738944384877,36.24416594,196.76,196.64,0.03721223]
[1738944385174,36.24416594,196.76,196.61,43.15494107]
[1738944385175,5.0838,196.64,196.63,82.46354568]
[1738944385477,5.0838,196.64,196.63,107.49898082]
[1738944385666,5.0838,196.64,196.63,83.21528082]
[1738944385870,5.0838,196.64,196.63,75.45848082]
[1738944386275,0.0344575,196.65,196.63,75.45848082]
[1738944386873,5.1178575,196.65,196.63,56.24358082]
[1738944387475,5.1178575,196.65,196.63,14.90618082]
[1738944387679,0.0344575,196.65,196.6,137.4392428]
[1738944388075,5.084,196.63,196.57,6.85712406]
[1738944388277,36.24416594,196.62,196.57,1.32982406]
[1738944388481,36.18946394,196.58,196.56,20.5713722]
[1738944388980,0.0332516,196.59,196.56,20.5713722]
[1738944389375,0.0332516,196.59,196.55,0.03737761]
[1738944390380,36.24416594,196.74,196.55,36.28154355]
[1738944390581,36.24416594,196.74,196.56,1.8269]
[1738944391084,36.24416594,196.7,196.56,1.8269]
[1738944391284,5.0834,196.65,196.56,1.8269]
[1738944391685,5.11639681,196.65,196.61,0.03443642]
[1738944392086,0.03299681,196.65,196.53,1.6256]
[1738944392591,36.24416594,196.7,196.53,1.6256]
[1738944392789,36.24416594,196.7,196.54,1.8269]
[1738944392991,36.24416594,196.66,196.54,1.8269]
[1738944393490,0.03756899,196.62,196.58,0.03393862]
[1738944394190,105.8214,196.73,196.59,36.24416594]
[1738944394490,105.8214,196.73,196.58,0.03393862]
[1738944394491,36.24416594,196.72,196.58,0.03393862]
[1738944394693,36.24416594,196.72,196.54,1.8269]
[1738944395188,36.24416594,196.68,196.54,1.8269]
[1738944395386,36.24416594,196.64,196.61,0.03424196]
[1738944395693,36.24416594,196.64,196.47,36.24416594]
[1738944395999,36.24416594,196.56,196.42,1.6369]
[1738944396190,36.24416594,196.56,196.48,20.5713722]
[1738944396894,0.03652782,196.54,196.5,0.03874194]
[1738944397395,5.087,196.51,196.5,0.03874194]
[1738944397992,36.24416594,196.52,196.5,0.03874194]
[1738944398591,5.087,196.51,196.5,4.194e-05]
[1738944398987,0.03652782,196.54,196.5,4.194e-05]
[1738944399789,5.16,196.67,196.5,36.24420788]
[1738944399993,36.24416594,196.76,196.5,36.24420788]
[1738944400300,36.24416594,196.8,196.63,36.24416594]
[1738944400497,0.93418792,196.79,196.63,36.24416594]
[1738944400897,36.24416594,196.84,196.67,36.24416594]
[1738944401192,0.03222207,196.73,196.69,0.03535801]
[1738944401394,0.93403103,196.82,196.67,36.24416594]
[1738944401600,41.40416594,196.88,196.71,36.24416594]
[1738944401601,36.24416594,196.88,196.71,36.24416594]
[1738944401898,0.9337601,196.87,196.71,36.24416594]
[1738944402098,0.9337601,196.88,196.71,36.24416594]
[1738944402299,36.24416594,196.88,196.72,1.5351]
[1738944402497,5.0799,196.79,196.67,36.24416594]
[1738944402695,5.0799,196.79,196.64,6.9413]
[1738944402696,36.24416594,196.83,196.65,1.5351]
[1738944402896,36.24416594,196.79,196.65,1.5351]
[1738944403097,0.03428384,196.75,196.71,0.03390981]
[1738944403694,5.0813,196.73,196.71,0.03390981]
[1738944403897,0.03428384,196.75,196.71,0.03390981]
[1738944404296,0.93402368,196.82,196.71,36.27807575]
[1738944404600,41.38416594,196.91,196.75,36.24416594]
[1738944404800,0.93359747,196.9,196.75,36.24416594]
[1738944405100,0.93359747,196.9,196.64,1.8577]
[1738944405101,36.24416594,196.83,196.64,1.8577]
[1738944405299,36.24416594,196.79,196.65,1.6594]
[1738944405499,5.0824,196.69,196.65,1.6594]
[1738944405697,0.03550836,196.75,196.72,0.03715899]
[1738944405894,5.0819,196.71,196.65,1.6594]
[1738944406099,41.38416594,196.79,196.65,1.6594]
[1738944406298,0.03900513,196.72,196.68,0.03252652]
[1738944406493,5.0818,196.71,196.68,0.03252652]
[1738944406704,0.03900513,196.72,196.68,0.03252652]
[1738944407202,5.0821,196.7,196.68,2.652e-05]
[1738944407903,0.03900513,196.72,196.68,2.652e-05]
[1738944408602,36.28317107,196.72,196.68,2.652e-05]
[1738944408802,36.28317107,196.72,196.63,4.01859872]
[1738944409002,5.0836,196.64,196.63,9.872e-05]
[1738944409210,41.36416594,196.66,196.62,46.73149127]
[1738944409505,5.12,196.66,196.62,46.73149127]
[1738944409900,10.24026795,196.66,196.62,46.76607496]
[1738944410101,5.15696795,196.66,196.62,46.76607496]
[1738944410301,0.03696795,196.66,196.62,46.76607496]
[1738944411604,0.03696795,196.66,196.62,83.0102409]
[1738944411808,0.03696795,196.66,196.62,46.76607496]
[1738944412010,0.03696795,196.66,196.62,0.03458369]
[1738944413205,5.0839,196.63,196.62,0.03458369]
[1738944413400,0.03696795,196.66,196.62,0.03458369]
[1738944413602,5.0836,196.65,196.62,0.03458369]
[1738944413806,0.03696795,196.66,196.62,0.03458369]
[1738944415307,5.081,196.74,196.66,5.0831]
[1738944415507,36.24416594,196.87,196.66,36.24416594]
[1738944415709,5.08,196.86,196.7,36.24416594]
[1738944416108,5.08,196.9,196.7,36.24416594]
[1738944416611,0.03643372,196.82,196.78,0.03784586]
[1738944417009,5.08,196.9,196.74,36.24416594]
[1738944417305,0.0377938,196.82,196.78,0.0353787]
[1738944417704,36.24416594,196.87,196.7,41.32596594]
[1738944417913,0.03283076,196.82,196.78,0.0324592]
[1738944419702,0.03283076,196.82,196.78,36.27662514]
[1738944419909,100.68,196.95,196.79,1.9075]
[1738944420104,100.68,196.95,196.82,36.24416594]
[1738944420303,3.81097822,197.01,196.82,36.24416594]
[1738944420508,0.93334913,196.99,196.82,36.24416594]
[1738944420709,5.04,197.01,196.83,1.6306]
[1738944421005,0.93325142,196.99,196.83,1.6306]
[1738944421205,0.03228913,196.93,196.9,2.494e-05]
[1738944421511,5.0766,196.91,196.9,2.494e-05]
[1738944421912,0.03228913,196.93,196.9,2.494e-05]
[1738944422608,5.04,197.01,196.9,2.494e-05]
[1738944422609,36.24416594,197.08,196.9,36.24419088]
[1738944422914,5.04,197.08,196.95,5.0756]
[1738944423109,0.93291317,197.07,196.94,36.24416594]
[1738944423313,5.04,197.14,196.98,36.24416594]
[1738944423511,5.04,197.14,197.0,5.0743]
[1738944423711,36.24416594,197.16,197.02,36.24416594]
[1738944423907,0.03278849,197.06,197.03,0.03356499]
[1738944424213,105.68,197.2,197.03,0.03356499]
[1738944424520,0.93236718,197.19,197.06,36.24416594]
[1738944424814,105.68,197.2,197.02,36.24416594]
[1738944425015,0.93230009,197.19,197.02,36.24416594]
[1738944425212,5.0707,197.14,197.02,36.24416594]
[1738944425515,0.03845021,197.12,197.09,0.03587792]
[1738944425813,5.0706,197.15,197.02,36.24416594]
[1738944426015,105.68,197.2,197.03,1.5309]
[1738944426208,0.03493882,197.12,197.09,0.0379497]
[1738944426608,0.93226581,197.19,197.09,0.0379497]
[1738944426816,0.03477775,197.12,197.1,36.24416594]
[1738944427015,36.24416594,197.18,197.04,1.945]
[1738944427214,5.06,197.24,197.09,0.03624116]
[1738944427414,0.03325129,197.13,197.09,41.3523071]
[1738944427615,5.06,197.24,197.09,36.24416594]
[1738944427913,0.03727227,197.13,197.09,0.03796568]
[1738944428112,5.0711,197.13,197.05,1.584]
[1738944428320,0.03234075,197.13,197.09,0.03630855]
[1738944428619,5.0715,197.11,197.09,0.03630855]
[1738944429120,0.03234075,197.13,197.09,0.03630855]
[1738944429321,5.06,197.26,197.09,0.03630855]
[1738944429322,100.58,197.35,197.12,36.24416594]
[1738944429515,0.93200047,197.28,197.16,36.24416594]
[1738944429722,0.93200047,197.33,197.17,1.8752]
[1738944429916,36.24416594,197.34,197.17,1.8752]
[1738944430121,5.0674,197.27,197.18,5.0697]
[1738944430317,36.24416594,197.34,197.18,5.0697]
[1738944430518,0.03824195,197.24,197.21,0.03517494]
[1738944430717,0.93167466,197.32,197.21,0.03517494]
[1738944430915,0.93167466,197.31,197.17,3.4351]
[1738944431215,100.58,197.35,197.17,3.4351]
[1738944431216,37.17581687,197.3,197.17,3.4351]
[1738944431417,5.06,197.31,197.17,3.4351]
[1738944431611,5.06,197.31,197.19,36.24416594]
[1738944431816,36.31226594,197.38,197.22,36.24416594]
[1738944432023,36.24416594,197.34,197.22,0.03861239]
[1738944432323,5.0688,197.22,197.17,1.8752]
[1738944432522,36.24416594,197.3,197.17,1.8752]
[1738944432723,0.93176495,197.29,197.18,0.0387658]
[1738944432923,5.1281,197.38,197.18,36.28293174]
[1738944433124,0.93161687,197.37,197.22,36.24416594]
[1738944433327,0.93161687,197.37,197.26,0.03557811]
[1738944434719,0.93147662,197.36,197.26,0.03557811]
[1738944435027,37.17564256,197.35,197.26,0.03557811]
[1738944435223,5.0678,197.26,197.18,36.24416594]
[1738944435419,36.24416594,197.31,197.29,2.717e-05]
[1738944435624,36.24416594,197.31,197.17,1.8752]
[1738944435923,5.1281,197.38,197.17,1.8752]
[1738944435924,5.1281,197.38,197.18,36.24416594]
[1738944436133,5.1281,197.38,197.17,1.8752]
[1738944436134,36.24416594,197.32,197.17,1.8752]
[1738944436421,36.24416594,197.28,197.17,1.8752]
[1738944436626,36.24416594,197.28,197.1,36.24416594]
[1738944436927,36.24416594,197.28,197.11,1.9316]
[1738944436928,5.0697,197.18,197.11,1.9316]
[1738944437226,36.24416594,197.24,197.11,1.9316]
[1738944437822,5.0694,197.19,197.11,1.9316]
[1738944438024,0.03875901,197.19,197.16,0.03301316]
[1738944438426,5.0699,197.17,197.16,0.03301316]
[1738944438621,0.03875901,197.19,197.16,0.03301316]
[1738944439226,5.0699,197.17,197.16,0.03301316]
[1738944440226,0.03875901,197.19,197.16,0.03301316]
[1738944441520,5.0699,197.17,197.16,0.03301316]
[1738944441720,0.03875901,197.19,197.16,0.03301316]
[1738944442127,5.10815901,197.19,197.16,0.03301316]
[1738944442426,0.03875901,197.19,197.16,0.03301316]
[1738944443025,0.03875901,197.19,197.16,1.316e-05]
[1738944443223,41.31406594,197.17,197.16,1.316e-05]
[1738944443423,37.17608967,197.17,197.0,1.5952]
[1738944443620,0.93192373,197.16,197.0,1.5952]
[1738944444427,36.24416594,197.09,196.94,3.618]
[1738944444627,41.46416594,197.09,196.94,3.618]
[1738944444829,36.24416594,197.05,196.94,1.9708]
[1738944445031,0.93265466,197.04,196.88,1.5952]
[1738944445429,36.24416594,197.01,196.88,1.5952]
[1738944445628,36.24416594,197.01,196.86,3.6336]
[1738944445829,0.93307339,197.0,196.86,5.2288]
[1738944446029,5.0769,196.91,196.86,5.2288]
[1738944446328,0.03692651,196.96,196.91,0.03811673]
[1738944446530,36.24416594,197.01,196.91,0.03811673]
[1738944446726,0.03220934,196.9,196.86,5.2288]
[1738944446934,0.03220934,196.9,196.8,25.55858665]
[1738944447129,36.24416594,196.93,196.8,25.55858665]
[1738944447329,0.03232029,196.87,196.86,0.0371558]
[1738944447534,0.93334454,196.96,196.86,0.0371558]
[1738944447833,36.24416594,197.01,196.84,36.24416594]
[1738944447834,5.0752,196.97,196.84,36.24416594]
[1738944448140,5.26,197.03,196.88,36.24416594]
[1738944448432,0.93301009,197.02,196.88,36.24416594]
[1738944448633,36.24416594,197.09,196.88,36.24416594]
[1738944448828,0.0386239,196.97,196.93,0.03290632]
[1738944449032,0.93284602,197.12,196.96,36.24416594]
[1738944449229,36.24416594,197.13,196.96,36.24416594]
[1738944449428,5.0707,197.14,197.03,5.0734]
[1738944449634,36.24416594,197.21,197.04,36.24416594]
[1738944449831,0.93235607,197.2,197.04,36.24416594]
[1738944450031,0.93235607,197.2,197.05,3.4469]
[1738944450234,0.03227461,197.14,197.1,0.03398613]
[1738944450629,5.0713,197.12,197.1,0.03398613]
[1738944451035,36.24416594,197.13,196.96,36.24416594]
[1738944451233,36.24416594,197.13,196.97,5.0916]
[1738944451534,36.24416594,197.09,196.97,5.0916]
[1738944451732,41.48416594,197.09,196.97,5.0916]
[1738944452229,0.03672115,197.05,197.01,0.03849039]
[1738944452434,36.28088709,197.05,197.01,0.03849039]
[1738944452734,5.0738,197.02,197.01,9.039e-05]
[1738944453533,5.0735,197.04,197.01,9.039e-05]
[1738944453730,0.03672115,197.05,197.01,9.039e-05]
[1738944454439,5.2,197.15,197.01,9.039e-05]